bitfinex/quotes_SOLUSD_20220109
["timestamp","ask_amount","ask_price","bid_price","bid_amount"]
[1641688050042,0.51,141.48,141.42,10.6038]
[1641688050441,0.51,141.5,141.42,10.6038]
[1641688050643,11.1133,141.5,141.42,10.6038]
[1641688052767,11.1133,141.5,141.4,7.8203857]
[1641688052768,11.1133,141.5,141.4,10.6052]
[1641688053069,3.0,141.49,141.4,10.6052]
[1641688053468,11.1145,141.48,141.4,10.6052]
[1641688053871,11.1145,141.48,141.41,3.0]
[1641688054070,0.51,141.48,141.37,60.29238342]
[1641688054472,3.51,141.5,141.37,26.19]
[1641688054674,7.54666508,141.48,141.21,84.7707]
[1641688054872,8.75,141.47,141.24,48.644]
[1641688055072,12.01,141.47,141.25,8.5]
[1641688055472,8.75,141.47,141.26,45.91722925]
[1641688055672,8.75,141.47,141.27,8.5]
[1641688055871,7.54666508,141.51,141.28,175.7996]
[1641688055872,16.04666508,141.51,141.28,175.7996]
[1641688056072,26.91232475,141.52,141.32,0.30441266]
[1641688056378,26.91232475,141.52,141.33,8.5]
[1641688056573,26.91232475,141.52,141.34,52.94949883]
[1641688056775,26.91232475,141.52,141.35,8.5]
[1641688056976,26.91232475,141.52,141.36,3.51]
[1641688057175,0.25,141.51,141.36,12.01]
[1641688057377,0.51,141.51,141.36,12.01]
[1641688057574,10.6037,141.49,141.36,12.01]
[1641688057976,0.26,141.48,141.36,12.01]
[1641688058777,10.6036,141.5,141.36,12.01]
[1641688059779,41.18342566,141.5,141.36,12.01]
[1641688059980,3.0,141.49,141.36,11.75]
[1641688060280,11.75,141.49,141.34,49.94949883]
[1641688060480,0.26,141.48,141.34,49.94949883]
[1641688060680,8.5,141.47,141.34,49.94949883]
[1641688060881,0.51,141.46,141.34,49.94949883]
[1641688061286,3.51,141.46,141.34,49.94949883]
[1641688061483,0.25,141.46,141.35,0.25]
[1641688061880,0.51,141.46,141.35,0.25]
[1641688062280,0.26,141.46,141.35,0.51]
[1641688062480,0.51,141.46,141.35,0.51]
[1641688063281,0.51,141.46,141.35,0.25]
[1641688063483,0.51,141.46,141.31,77.6405]
[1641688063484,8.5,141.45,141.31,77.6405]
[1641688063683,16.699,141.45,141.28,3.96734218]
[1641688063984,11.05666508,141.44,141.29,3.96734218]
[1641688064181,8.5,141.43,141.29,3.96734218]
[1641688064383,24.75582693,141.42,141.29,3.96734218]
[1641688064583,10.6168,141.36,141.29,3.96734218]
[1641688064783,10.6168,141.36,141.26,20.66762502]
[1641688064983,8.5,141.4,141.26,20.66762502]
[1641688065183,8.5,141.4,141.26,34.51962502]
[1641688065382,8.5,141.4,141.27,3.51]
[1641688065383,0.25,141.39,141.27,3.51]
[1641688065782,8.5,141.4,141.27,3.51]
[1641688065982,0.26,141.42,141.27,12.01]
[1641688065983,10.61,141.41,141.27,12.01]
[1641688066182,10.61,141.41,141.27,113.7343]
[1641688066985,8.5,141.43,141.27,113.7343]
[1641688067184,0.25,141.42,141.27,113.7343]
[1641688067383,19.1087,141.43,141.27,113.7343]
[1641688067584,10.6087,141.43,141.27,113.7343]
[1641688068387,10.6087,141.43,141.28,3.99840208]
[1641688068688,10.6087,141.43,141.29,11.5]
[1641688068986,38.00756637,141.44,141.29,17.292]
[1641688069189,0.25,141.43,141.29,17.292]
[1641688069389,10.6074,141.44,141.29,17.292]
[1641688069688,3.69844795,141.49,141.37,10.6042]
[1641688069987,3.69844795,141.49,141.38,12.01]
[1641688070188,3.69844795,141.49,141.39,5.91470306]
[1641688070387,3.69844795,141.49,141.4,0.51]
[1641688070589,31.74579981,141.48,141.4,3.51]
[1641688070988,0.25,141.47,141.4,0.51]
[1641688071490,10.604,141.49,141.4,0.25]
[1641688071691,8.5,141.53,141.39,0.51]
[1641688071889,0.25,141.52,141.39,0.51]
[1641688072090,38.5981,141.52,141.4,10.603]
[1641688072291,29.45198402,141.51,141.4,10.603]
[1641688072493,0.25,141.5,141.41,0.51]
[1641688072691,0.51,141.5,141.41,0.51]
[1641688072891,11.1132,141.5,141.41,0.51]
[1641688073092,11.1132,141.5,141.41,0.25]
[1641688073492,0.51,141.5,141.4,0.51]
[1641688073693,0.51,141.5,141.4,3.51]
[1641688073893,0.51,141.5,141.4,3.25]
[1641688074299,0.51,141.5,141.4,13.8531]
[1641688074897,0.25,141.5,141.4,3.25]
[1641688075095,10.8528,141.5,141.4,3.25]
[1641688075896,3.0,141.49,141.33,35.3514]
[1641688076197,10.6094,141.41,141.34,3.0]
[1641688076395,10.6094,141.41,141.3,32.7376]
[1641688076600,10.6094,141.41,141.31,3.0]
[1641688076799,10.6094,141.41,141.32,25.53142007]
[1641688077196,10.6108,141.39,141.32,25.53142007]
[1641688077398,0.26,141.38,141.3,32.7376]
[1641688077600,0.51,141.38,141.27,36.95194218]
[1641688078099,0.25,141.38,141.27,32.9846]
[1641688078304,10.6136,141.36,141.27,32.9846]
[1641688078499,0.26,141.35,141.28,20.31195434]
[1641688078900,0.25,141.38,141.28,20.31195434]
[1641688079098,3.69844795,141.46,141.29,3.0]
[1641688079303,10.6095,141.41,141.29,11.5]
[1641688079500,8.5,141.45,141.29,11.5]
[1641688079700,8.5,141.45,141.3,0.25]
[1641688079901,8.5,141.45,141.31,8.5]
[1641688080104,8.5,141.45,141.32,3.0]
[1641688080302,8.5,141.45,141.32,3.51]
[1641688080501,8.5,141.45,141.37,10.6058]
[1641688080704,10.6061,141.46,141.37,16.87617374]
[1641688080901,8.5,141.49,141.38,0.51]
[1641688081102,12.19844795,141.51,141.38,3.51]
[1641688081704,10.6048,141.48,141.39,10.6038]
[1641688081907,106.89844795,141.53,141.4,0.51]
[1641688082104,106.89844795,141.53,141.39,8.5]
[1641688082503,106.89844795,141.53,141.4,3.51]
[1641688082704,8.5,141.53,141.4,3.51]
[1641688082903,10.6035,141.49,141.4,3.51]
[1641688083503,10.6035,141.49,141.4,3.25]
[1641688083703,3.0,141.48,141.4,0.25]
[1641688083905,10.6098,141.42,141.37,14.77037374]
[1641688084107,10.6098,141.42,141.37,6.27037374]
[1641688084309,10.6098,141.42,141.38,0.25]
[1641688084711,10.6098,141.42,141.33,24.9192]
[1641688085112,10.6098,141.42,141.34,10.6084]
[1641688085342,10.6119,141.38,141.33,24.9192]
[1641688085547,10.6119,141.38,141.3,33.2218]
[1641688085739,10.6119,141.38,141.3,8.5]
[1641688086341,10.6119,141.38,141.3,19.1122]
[1641688086541,10.6109,141.39,141.31,24.60570087]
[1641688086741,10.6109,141.39,141.31,24.86570087]
[1641688086942,0.25,141.38,141.29,470.11870171]
[1641688087144,3.51,141.38,141.29,470.11870171]
[1641688087542,10.616,141.34,141.29,470.11870171]
[1641688087742,3.0,141.37,141.26,3.96734218]
[1641688087942,0.51,141.36,141.26,21.41076637]
[1641688088142,0.25,141.36,141.26,21.41076637]
[1641688088342,3.0,141.37,141.27,0.25]
[1641688088541,10.6125,141.37,141.27,3.25]
[1641688088741,3.0,141.4,141.27,11.75]
[1641688088942,8.5,141.43,141.27,11.75]
[1641688089143,0.51,141.42,141.27,11.75]
[1641688089343,0.25,141.42,141.27,11.75]
[1641688089746,10.8587,141.42,141.33,10.6102]
[1641688089944,11.1187,141.42,141.34,0.51]
[1641688090144,11.1187,141.42,141.32,5.17156171]
[1641688090343,3.0,141.41,141.33,0.51]
[1641688090745,10.6124,141.37,141.33,0.51]
[1641688090947,10.6124,141.37,141.29,3.0]
[1641688091147,0.25,141.36,141.27,3.0]
[1641688091744,10.6164,141.32,141.27,3.0]
[1641688091946,10.6164,141.32,141.27,22.41251719]
[1641688092347,10.6164,141.32,141.28,0.51]
[1641688092745,10.6164,141.32,141.27,22.41251719]
[1641688092945,10.6153,141.33,141.27,22.41251719]
[1641688093345,0.25,141.36,141.27,22.41251719]
[1641688093546,3.25,141.36,141.27,22.41251719]
[1641688093748,3.51,141.36,141.27,22.41251719]
[1641688094145,10.6151,141.34,141.28,0.25]
[1641688094749,3.25,141.36,141.28,0.25]
[1641688094950,3.25,141.36,141.28,0.51]
[1641688095148,10.8636,141.36,141.28,0.51]
[1641688095352,3.0,141.35,141.25,8.5]
[1641688095551,11.5,141.35,141.22,151.24264218]
[1641688095750,0.25,141.34,141.22,3.96734218]
[1641688095949,9.01,141.34,141.2,3.96734218]
[1641688096153,10.6236,141.28,141.2,3.96734218]
[1641688096354,8.5,141.32,141.2,3.96734218]
[1641688096585,30.9515151,141.27,141.2,3.96734218]
[1641688097055,30.9515151,141.27,141.18,548.97675963]
[1641688097457,10.624,141.23,141.18,548.97675963]
[1641688098054,10.624,141.23,141.16,20.92849797]
[1641688098654,10.624,141.23,141.17,0.26]
[1641688099657,10.624,141.23,141.17,0.51]
[1641688100459,10.624,141.23,141.17,0.25]
[1641688101056,10.624,141.23,141.13,94.7]
[1641688101459,3.51,141.22,141.13,94.7]
[1641688101657,10.6275,141.18,141.13,94.7]
[1641688102760,10.6275,141.18,141.14,0.26]
[1641688102963,10.6275,141.18,141.13,0.26]
[1641688103464,10.6275,141.18,141.13,0.51]
[1641688105690,10.6275,141.18,141.06,60.4523818]
[1641688105891,0.51,141.17,141.07,8.5]
[1641688106091,10.6336,141.12,141.07,8.5]
[1641688106288,10.6336,141.12,141.06,3.96734218]
[1641688106689,10.6336,141.12,141.06,1.98718702]
[1641688106890,3.0,141.11,141.06,1.98718702]
[1641688107192,10.6352,141.09,141.06,1.98718702]
[1641688107589,0.26,141.08,141.03,451.85263632]
[1641688107790,3.51,141.08,141.03,451.85263632]
[1641688108190,3.51,141.08,141.02,1.98718702]
[1641688108390,3.0,141.13,141.03,23.04127697]
[1641688108592,8.5,141.18,141.03,23.04127697]
[1641688108792,8.5,141.18,141.04,3.51]
[1641688108993,78.8596,141.19,141.05,8.5]
[1641688109393,8.5,141.21,141.06,3.51]
[1641688109593,28.2361888,141.2,141.06,5.16345313]
[1641688109793,10.6302,141.17,141.08,10.63]
[1641688109994,28.2361888,141.2,141.09,0.51]
[1641688110394,0.25,141.19,141.09,4.05105111]
[1641688110598,8.5,141.23,141.09,3.79105111]
[1641688110795,8.5,141.27,141.1,0.26]
[1641688110996,3.0,141.22,141.11,8.5]
[1641688111197,199.9472,141.28,141.16,10.6239]
[1641688111395,8.5,141.31,141.17,0.51]
[1641688111602,31.65221666,141.3,141.17,3.51]
[1641688112400,3.26,141.29,141.13,8.5]
[1641688112603,12.01,141.29,141.13,8.5]
[1641688112805,12.01,141.29,141.14,3.26]
[1641688113401,10.6235,141.27,141.14,30.81220434]
[1641688113600,8.5,141.27,141.15,3.0]
[1641688113800,3.26,141.26,141.15,3.0]
[1641688114000,0.26,141.26,141.16,0.26]
[1641688114402,11.76,141.26,141.15,3.0]
[1641688115000,10.6267,141.22,141.15,3.0]
[1641688115204,25.41480602,141.24,141.15,3.0]
[1641688115403,0.51,141.23,141.15,3.0]
[1641688115605,0.25,141.23,141.15,3.0]
[1641688116104,0.25,141.23,141.14,19.92700434]
[1641688116303,0.25,141.23,141.15,0.26]
[1641688116906,0.51,141.23,141.15,0.26]
[1641688117104,3.0,141.26,141.15,0.51]
[1641688117308,8.5,141.3,141.15,15.78795313]
[1641688117509,32.2139,141.32,141.16,32.4125]
[1641688117904,32.2139,141.32,141.17,3.51]
[1641688118104,27.4846087,141.31,141.17,3.51]
[1641688118607,3.0,141.3,141.2,10.621]
[1641688118806,3.25,141.3,141.17,3.51]
[1641688119005,3.0,141.3,141.16,32.4125]
[1641688119406,3.51,141.3,141.17,3.0]
[1641688119604,14.1307,141.3,141.2,10.6203]
[1641688119805,14.1307,141.3,141.17,3.0]
[1641688120005,14.1307,141.3,141.16,32.4125]
[1641688120606,14.1307,141.3,141.17,3.0]
[1641688121106,8.5,141.29,141.17,3.0]
[1641688121308,10.6274,141.21,141.12,24.6611]
[1641688121507,10.6274,141.21,141.13,11.5]
[1641688121707,3.0,141.28,141.13,11.5]
[1641688122307,3.0,141.28,141.13,22.1262]
[1641688122505,10.6255,141.24,141.13,22.1262]
[1641688122706,38.33315633,141.24,141.13,22.1262]
[1641688122906,27.70765633,141.24,141.13,22.1262]
[1641688123406,27.70765633,141.24,141.13,21.865303]
[1641688124906,27.70765633,141.24,141.13,23.85249002]
[1641688125908,27.70765633,141.24,141.14,1.98718702]
[1641688126111,27.70765633,141.24,141.15,13.6246]
[1641688126913,27.70765633,141.24,141.15,10.6246]
[1641688127311,19.1231,141.27,141.15,10.6246]
[1641688127515,3.0,141.26,141.15,10.6246]
[1641688127713,8.5,141.27,141.15,10.6246]
[1641688128312,32.023408,141.27,141.15,10.6246]
[1641688128815,10.6241,141.26,141.15,10.6246]
[1641688129215,10.6241,141.26,141.13,1.98718702]
[1641688129413,15.6451,141.26,141.14,3.0]
[1641688129615,3.0,141.25,141.13,1.98718702]
[1641688130016,3.0,141.26,141.13,1.98718702]
[1641688130846,3.0,141.26,141.12,47.43462975]
[1641688131045,3.0,141.26,141.13,3.0]
[1641688131546,32.023408,141.27,141.13,3.0]
[1641688131746,32.023408,141.27,141.14,1.98718702]
[1641688131946,10.6263,141.23,141.14,12.61268702]
[1641688132745,23.523408,141.27,141.15,8.5]
[1641688132945,23.523408,141.27,141.15,11.5]
[1641688133946,34.146408,141.27,141.17,10.623]
[1641688134148,34.146408,141.27,141.18,3.0]
[1641688134647,34.146408,141.27,141.17,3.0]
[1641688135047,23.523408,141.27,141.17,3.0]
[1641688136047,23.523408,141.27,141.21,10.62]
[1641688136247,8.5,141.29,141.17,3.0]
[1641688137149,22.80154961,141.28,141.21,10.62]
[1641688139053,1.95360489,141.31,141.21,19.12]
[1641688139255,1.95360489,141.31,141.22,3.0]
[1641688139452,1.95360489,141.3,141.26,10.6148]
[1641688140454,28.92044159,141.34,141.26,10.6148]
[1641688141055,1.95360489,141.37,141.26,19.1148]
[1641688141456,4.95360489,141.36,141.21,1.65345313]
[1641688141655,13.45360489,141.36,141.2,1.98718702]
[1641688141857,15.10705802,141.36,141.2,1.98718702]
[1641688142154,13.45360489,141.36,141.2,1.98718702]
[1641688142354,10.6172,141.34,141.22,35.3888]
[1641688142554,10.6172,141.34,141.26,10.6163]
[1641688142756,1.95360489,141.34,141.26,10.6163]
[1641688142955,1.95360489,141.34,141.27,3.0]
[1641688143455,1.95360489,141.34,141.25,3.0]
[1641688143856,3.0,141.33,141.3,10.6133]
[1641688144056,3.0,141.33,141.27,35.3777]
[1641688144658,3.0,141.35,141.27,35.3777]
[1641688145058,3.0,141.35,141.29,10.6143]
[1641688146458,13.6152,141.35,141.25,22.7775]
[1641688146660,13.6152,141.35,141.22,23.1679]
[1641688146661,13.6152,141.35,141.22,8.5]
[1641688146961,23.76865313,141.35,141.21,22.04388567]
[1641688147159,23.76865313,141.35,141.22,3.0]
[1641688147360,1.95360489,141.34,141.22,3.0]
[1641688147559,10.6189,141.3,141.23,10.6186]
[1641688148361,3.0,141.33,141.23,10.6186]
[1641688149398,10.6185,141.31,141.23,10.6186]
[1641688149800,3.0,141.3,141.23,10.6186]
[1641688149999,3.0,141.33,141.23,10.6186]
[1641688150398,3.0,141.34,141.27,10.6158]
[1641688150598,13.6161,141.34,141.27,10.6158]
[1641688151300,1.95360489,141.35,141.27,10.6158]
[1641688151499,1.95360489,141.35,141.27,15.15424241]
[1641688151700,1.95360489,141.35,141.27,10.6158]
[1641688152103,1.95360489,141.37,141.27,10.6158]
[1641688152503,13.6146,141.36,141.27,10.6158]
[1641688153102,13.6146,141.36,141.28,3.0]
[1641688153303,13.6146,141.36,141.29,10.6143]
[1641688153505,13.6146,141.36,141.22,56.77418702]
[1641688153707,23.76805313,141.36,141.22,48.27418702]
[1641688154310,1.95360489,141.35,141.19,81.88858702]
[1641688154507,31.536547,141.27,141.19,1.98718702]
[1641688154709,38.697547,141.27,141.19,1.98718702]
[1641688155008,3.0,141.26,141.19,1.98718702]
[1641688155205,3.0,141.26,141.15,113.84828702]
[1641688155406,3.0,141.26,141.15,12.61178702]
[1641688155606,10.6245,141.22,141.15,12.61178702]
[1641688156107,5.017,141.24,141.16,3.0]
[1641688156307,1.95360489,141.3,141.16,3.0]
[1641688156708,43.907,141.29,141.16,3.0]
[1641688156909,3.0,141.28,141.15,3.0]
[1641688157211,28.16384513,141.28,141.16,1.98718702]
[1641688157910,28.16384513,141.28,141.14,130.30162695]
[1641688158110,8.5,141.27,141.18,10.6229]
[1641688158309,8.5,141.27,141.15,3.0]
[1641688158509,3.0,141.26,141.14,22.95352695]
[1641688158710,3.0,141.26,141.13,1.98718702]
[1641688158910,8.5,141.25,141.13,1.98718702]
[1641688159114,10.6294,141.19,141.13,1.98718702]
[1641688159312,16.3954,141.19,141.13,1.98718702]
[1641688159512,3.0,141.18,141.13,1.98718702]
[1641688159715,22.76605476,141.2,141.09,1.98718702]
[1641688160112,4.65345313,141.19,141.09,1.98718702]
[1641688160344,10.6296,141.16,141.09,12.61628702]
[1641688160715,10.6296,141.16,141.09,10.6291]
[1641688162318,10.6317,141.12,141.06,1.98718702]
[1641688162518,3.0,141.11,141.06,1.98718702]
[1641688162916,3.0,141.11,141.0,12.75888702]
[1641688163119,30.34442973,141.11,141.0,1.98718702]
[1641688163316,10.6371,141.05,141.0,1.98718702]
[1641688163516,3.0,141.04,141.0,1.98718702]
[1641688163716,5.289,141.05,140.99,468.10926819]
[1641688163916,3.0,141.04,140.99,468.10926819]
[1641688164128,5.289,141.05,140.99,468.10926819]
[1641688164320,10.6392,141.02,140.97,1.98718702]
[1641688164517,18.2172,141.02,140.97,1.98718702]
[1641688164718,3.0,141.01,140.97,1.98718702]
[1641688164921,3.0,141.01,140.87,31.7592]
[1641688164922,11.5,141.01,140.95,1.98718702]
[1641688165319,1.65345313,141.0,140.95,1.98718702]
[1641688165519,10.6455,140.97,140.95,1.98718702]
[1641688165723,29.0,140.96,140.95,0.98718702]
[1641688165924,32.0,140.96,140.95,0.98718702]
[1641688166119,32.0,140.96,140.85,79.3683]
[1641688166320,32.0,140.96,140.84,0.98718702]
[1641688166521,40.5,140.96,140.84,0.98718702]
[1641688166720,51.1459,140.96,140.84,11.63538702]
[1641688166921,51.1459,140.96,140.84,9.13538702]
[1641688167122,51.1459,140.96,140.82,78.7967]
[1641688167323,1.65345313,140.95,140.8,115.8743]
[1641688167522,8.5,140.94,140.8,115.8743]
[1641688167721,10.6528,140.93,140.78,98.66734218]
[1641688167947,19.1528,140.93,140.78,98.66734218]
[1641688168147,3.0,140.92,140.79,19.63859748]
[1641688168552,3.0,140.92,140.8,3.0]
[1641688168951,3.0,140.92,140.8,3.51]
[1641688169149,39.36560778,140.93,140.8,3.0]
[1641688169350,19.1494,140.93,140.8,3.25]
[1641688169750,10.6494,140.93,140.81,8.5]
[1641688170053,8.5,140.97,140.82,3.0]
[1641688170452,10.6456,140.94,140.84,10.6475]
[1641688170752,10.6456,140.94,140.85,6.9437306]
[1641688170951,10.6456,140.94,140.85,9.9437306]
[1641688171652,10.6456,140.94,140.85,20.5906306]
[1641688171849,10.6456,140.94,140.85,3.0]
[1641688172051,10.6456,140.94,140.82,3.0]
[1641688172851,10.6456,140.94,140.83,18.87176003]
[1641688173152,10.6457,140.96,140.84,11.5]
[1641688173350,8.5,141.0,140.84,11.5]
[1641688173551,8.5,141.0,140.84,16.58544838]
[1641688173752,185.53142934,141.11,140.86,0.30153903]
[1641688173753,8.5,141.04,140.86,0.30153903]
[1641688173953,37.92963834,141.04,140.87,8.5]
[1641688174152,8.5,141.04,140.87,15.23890151]
[1641688174355,8.5,141.09,140.92,10.6415]
[1641688174557,8.5,141.09,140.93,11.5]
[1641688174752,77.202,141.14,140.93,16.58544838]
[1641688174753,8.5,141.13,140.93,16.58544838]
[1641688174954,8.5,141.13,140.94,76.0145]
[1641688175257,37.82862091,141.13,141.04,10.6311]
[1641688175460,29.32862091,141.13,141.04,10.6311]
[1641688175857,29.32862091,141.13,141.05,3.0]
[1641688176261,29.32862091,141.13,141.01,18.87176003]
[1641688176459,29.32862091,141.13,141.06,10.6308]
[1641688176657,37.82862091,141.13,140.97,54.1375]
[1641688176858,3.0,141.12,140.97,54.1375]
[1641688177059,3.0,141.12,140.98,3.0]
[1641688177258,37.82862091,141.13,140.98,3.0]
[1641688177460,37.82862091,141.13,141.05,10.6323]
[1641688179863,10.884,141.12,141.0,35.4441]
[1641688180063,10.884,141.12,140.98,3.0]
[1641688180064,0.26,141.11,140.98,3.0]
[1641688180466,3.26,141.11,140.97,8.5]
[1641688180665,3.26,141.11,140.98,0.25]
[1641688180864,0.25,141.1,140.98,0.25]
[1641688182067,3.26,141.11,140.98,0.25]
[1641688182266,8.76,141.11,140.98,0.25]
[1641688182465,0.25,141.1,140.98,0.51]
[1641688183066,0.25,141.1,140.98,3.51]
[1641688183264,10.8856,141.1,140.98,0.26]
[1641688183465,0.26,141.09,140.98,0.26]
[1641688183665,0.26,141.09,140.94,107.8647]
[1641688184066,8.5,141.08,140.94,99.3647]
[1641688184265,10.6384,141.06,140.94,134.8232]
[1641688184465,0.25,141.05,140.96,0.51]
[1641688184665,6.462,141.06,140.96,19.74883433]
[1641688184867,27.41003076,141.07,140.96,19.74883433]
[1641688185669,38.04773076,141.07,140.96,30.38723433]
[1641688185866,38.04773076,141.07,140.94,76.0145]
[1641688185867,0.51,141.06,140.94,76.0145]
[1641688186068,13.66345313,141.06,140.9,8.5]
[1641688186268,1.65345313,141.05,140.9,8.5]
[1641688186467,9.01,141.04,140.9,8.5]
[1641688186669,19.067,141.04,140.9,8.0]
[1641688186868,10.6454,140.98,140.9,8.0]
[1641688187268,10.6454,140.98,140.91,0.51]
[1641688187469,10.6454,140.98,140.91,0.25]
[1641688187670,0.25,140.97,140.89,3.0]
[1641688187871,10.647,140.95,140.88,22.504]
[1641688188273,10.647,140.95,140.87,24.551]
[1641688188473,15.929,140.95,140.85,32.6194]
[1641688189071,10.647,140.95,140.85,32.6194]
[1641688189873,10.646,140.96,140.86,0.25]
[1641688190072,0.25,140.97,140.88,10.6449]
[1641688190274,23.60184731,140.99,140.87,7.48565089]
[1641688190474,0.25,140.98,140.88,0.25]
[1641688190875,0.25,140.98,140.88,0.51]
[1641688191072,23.60184731,140.99,140.88,0.51]
[1641688191276,10.6442,140.99,140.9,10.6431]
[1641688191475,10.6442,140.99,140.91,0.51]
[1641688191679,35.4781,141.03,140.91,3.51]
[1641688192275,26.37956019,141.02,140.91,0.26]
[1641688192778,10.6429,141.0,140.91,10.6429]
[1641688192976,0.25,140.99,140.92,0.26]
[1641688193379,26.37956019,141.02,140.92,0.26]
[1641688193579,26.37956019,141.02,140.91,8.5]
[1641688193978,8.5,141.09,140.92,13.902]
[1641688194279,8.5,141.1,140.93,8.5]
[1641688194479,8.5,141.1,140.96,35.4532]
[1641688194678,8.5,141.1,140.94,3.26]
[1641688194879,31.62707023,141.09,140.95,0.25]
[1641688195080,10.6408,141.03,140.94,19.4001]
[1641688195280,0.25,141.08,140.94,19.4001]
[1641688195481,10.40345313,141.08,140.94,8.76]
[1641688195682,1.65345313,141.07,140.94,8.76]
[1641688195886,0.25,141.06,140.94,8.76]
[1641688196081,10.6435,141.0,140.93,23.9791]
[1641688196381,28.1306827,140.99,140.9,3.96734218]
[1641688196583,28.1306827,140.99,140.89,24.4771]
[1641688196781,28.1306827,140.99,140.88,80.00444218]
[1641688196982,28.1306827,140.99,140.88,3.96734218]
[1641688197182,8.5,140.98,140.88,3.96734218]
[1641688197382,0.51,140.97,140.85,3.96734218]
[1641688197581,10.6476,140.95,140.85,14.61494218]
[1641688197782,10.6476,140.95,140.85,3.96734218]
[1641688198082,30.87101942,140.93,140.85,3.96734218]
[1641688198283,30.87101942,140.93,140.86,0.26]
[1641688198584,30.87101942,140.93,140.85,10.6475]
[1641688198783,30.87101942,140.93,140.84,0.51]
[1641688198784,30.87101942,140.93,140.86,0.51]
[1641688198983,8.5,140.98,140.85,3.0]
[1641688199190,8.5,141.01,140.86,8.5]
[1641688199488,8.5,141.01,140.87,3.0]
[1641688199888,31.87651649,141.03,140.88,0.51]
[1641688200089,3.0,141.02,140.88,0.51]
[1641688200289,3.25,141.02,140.88,0.51]
[1641688200488,0.26,141.01,140.88,0.51]
[1641688200691,10.9024,141.01,140.88,0.51]
[1641688200988,0.25,141.0,140.88,0.51]
[1641688201391,8.5,141.01,140.88,0.51]
[1641688201625,31.87651649,141.03,140.88,0.51]
[1641688201626,40.37651649,141.03,140.89,26.21225065]
[1641688201912,40.37651649,141.03,140.92,10.6422]
[1641688201913,10.6419,141.02,140.92,10.6422]
[1641688202115,3.0,141.02,140.92,10.6422]
[1641688202313,31.87651649,141.03,140.93,3.51]
[1641688202513,31.87651649,141.03,140.94,0.26]
[1641688202713,78.6327,141.04,140.94,0.51]
[1641688202913,8.5,141.11,140.95,8.5]
[1641688203114,8.5,141.11,140.96,3.0]
[1641688203313,8.5,141.11,140.96,12.01]
[1641688203515,8.5,141.14,140.96,11.76]
[1641688203717,22.54282649,141.13,140.96,11.76]
[1641688203914,1.65345313,141.11,140.99,10.6371]
[1641688204115,3.0,141.1,140.99,10.6371]
[1641688204313,1.65345313,141.11,141.0,0.26]
[1641688204515,1.65345313,141.11,140.97,0.25]
[1641688204716,0.25,141.1,140.96,8.5]
[1641688204916,10.6406,141.03,140.95,3.96734218]
[1641688205116,16.4416,141.03,140.95,3.96734218]
[1641688205515,0.25,141.02,140.93,3.96734218]
[1641688205716,0.25,141.02,140.93,23.08182187]
[1641688206018,8.5,141.07,140.93,33.72352187]
[1641688206222,8.5,141.13,140.94,0.25]